Workbook

Sheet Инф-я
A2: Расчет НВВ на услуги по передаче электрической энергии, устанавливаемых с применением метода долгосрочной индексации необходимой валовой выручки
B5: Информация об организации
A7: № п/п | B7: Требуемая информация | C7: Данные об организации
A8: 1. | B8: Наименование организации в соответствии с уставом:
B9: сокращенное название организации | C9: МУП «Горэлектросеть» г. Муром
B10: полное наименование организации
A11: 2. | B11: Муниципальное образование | C11: Муниципальное унитарное предприятие округа Муром
A12: 3. | B12: Адрес организации:
B13: юридический адрес | C13: ул.Владимирская, д.8А, г.Муром
B14: фактический адрес (месторасположение) | C14: ул.Владимирская, д.8А, г.Муром
A15: 4. | B15: ИНН | C15: 3307002148
A16: 5. | B16: КПП | C16: 333401001
A17: 6. | B17: ФИО руководителя организации | C17: А.А. Мартынов
B18: контактный телефон/факс | C18: (49234) 3-31-42
B19: е-mail | C19: energy@murom.net
A20: 7. | B20: ФИО начальника ПЭО | C20: Т.П.Скромнова
B21: контактный телефон/факс | C21: (49234) 4-62-47
A22: 8. | B22: ФИО ответственного за электрохозяйство | C22: А.В.Ружьев
B23: контактный телефон/факс | C23: (49234) 4-48-89
A24: 9. | B24: ФИО главного бухгалтера | C24: Н.Н.Комарова
B25: контактный телефон/факс | C25: (49234) 4-12-83
A26: 10. | B26: ФИО непосредственного исполнителя
B27: контактный телефон/факс
B28: е-mail | C28: peomuromges@mail.ru
A29: 11. | B29: Банковские реквизиты:
B30: расчетный счет | C30: 4070281060300000656
B31: банк | C31: ПАО "МИНБАНК" г.Москва
B32: корреспондентский счет | C32: 30101810300000000600
B33: БИК | C33: 044525600
A35: В конце книги Excel размещены листы серого цвета для заполнения шаблона "Расчет фактических показателей надежности и качества за 2017 год". Согласно п. 14 Постановления Правительства от 31.12.2009 г. № 1220 организации предоставляют регулирующим органам до 1 апреля года, следующего за отчетным, отчетные данные, используемые при расчете фактических значений показателей надежности и качества.
A37: Согласно п. 9 Постановления Правительства РФ от 21.01.2004 г. № 24 "Об утверждении стандартов раскрытия информации субъектами оптового и розничных рынков электрической энергии":
A38: "Субъекты рынков электрической энергии раскрывают следующую информацию:
A39: г) предложение о размере цен (тарифов), долгосрочных параметров регулирования (при применении метода доходности инвестированного капитала или метода долгосрочной необходимой валовой выручки), подлежащих регулированию в соответствии с Основами ценообразования в области регулируемых цен (тарифов) в электроэнергетике, утвержденными постановлением Правительства Российской Федерации от 29 декабря 2011 г. № 1178".
A40: Указанная в подпункте "г" пункта 9 настоящего документа информация подлежит раскрытию на официальных сайтах регулируемых организаций или на ином официальном сайте в сети Интернет, определяемом Правительством Российской Федерации, и (или) в периодическом печатном издании, в котором публикуются нормативные правовые акты органа исполнительной власти в области регулирования тарифов, - за 10 дней до представления в регулирующий орган предложения об установлении цен (тарифов) и (или) их предельных уровней, содержащего такую информацию
A41: Согласно п. 9.1 Правил государственного регулирования (пересмотра, применения) цен (тарифов) в электроэнергктике, утвержденных постановлением Правительства РФ от 29 декабря 2011 г. N 1178:
A42: "Регулирующий орган отказывает в открытии дела об установлении цены (тарифа), в случае если регулируемая организация не опубликовала предложение о размере цен (тарифов) и долгосрочных параметров регулирования (при применении метода доходности инвестированного капитала или метода долгосрочной индексации необходимой валовой выручки), подлежащих регулированию, в порядке, установленном стандартами раскрытия информации субъектами оптового и розничных рынков электрической энергии, утвержденными постановлением Правительства Российской Федерации от 21 января 2004 г. N 24, или указанное опубликованное предложение не соответствует предложению, представляемому в орган регулирования".
A101: 1 | B101: ООО «Радугагорэнерго»
A102: 2 | B102: МУП «Горэлектросеть» г. Муром
A103: 3 | B103: МУП «Александровэлектросеть»
A104: 4 | B104: ООО «СтройГарант»
A105: 5 | B105: ООО «Костеревские городские электрические сети»
A106: 6 | B106: ООО «Ковровэлектросетьремонт»
A107: 7 | B107: ООО «ПромРЭС»
A108: 8 | B108: ООО «ПромЭнерго» г. Судогда
A109: 9 | B109: ОАО «Энергетик» г. Карабаново
A110: 10 | B110: ООО «Электросистемы»
A111: 11 | B111: ООО «Ярцево-Энерго»
A112: 12 | B112: ПАО «Ставровский завод АТО»
A113: 13 | B113: ООО «ЭнергоАктив»

Sheet Баланс энергии
A3: Баланс электрической энергии по сетям ВН, СН1, СН2, и НН
A4: ='Инф-я'!C9 -> МУП «Горэлектросеть» г. Муром
AY5: млн. кВт.ч.
A6: № п.п. | B6: Показатели | C6: Принято регулирующим органом на 2017 год | H6: Факт за 1 полугодие 2017 года | M6: Факт за 2 полугодие 2017 года | R6: Факт за 2017 год | W6: Принято регулирующим органом на 1 полугодие 2018 года | AB6: Принято регулирующим органом на 2 полугодие 2018 года | AG6: Принято регулирующим органом на 2018 год | AL6: По данным организации на 1 полугодие 2019 года | AQ6: По данным организации на 2 полугодие 2019 года | AV6: По данным организации на 2019 год | BA6: Принято регулирующим органом на 1 полугодие 2019 года | BF6: Принято регулирующим органом на 2 полугодие 2019 года | BK6: Принято регулирующим органом на 2019 год
C7: Всего | D7: ВН | E7: СН1 | F7: СН2 | G7: НН | H7: Всего | I7: ВН | J7: СН1 | K7: СН2 | L7: НН | M7: Всего | N7: ВН | O7: СН1 | P7: СН2 | Q7: НН | R7: Всего | S7: ВН | T7: СН1 | U7: СН2 | V7: НН | W7: Всего | X7: ВН | Y7: СН1 | Z7: СН2 | AA7: НН | AB7: Всего | AC7: ВН | AD7: СН1 | AE7: СН2 | AF7: НН | AG7: Всего | AH7: ВН | AI7: СН1 | AJ7: СН2 | AK7: НН | AL7: Всего | AM7: ВН | AN7: СН1 | AO7: СН2 | AP7: НН | AQ7: Всего | AR7: ВН | AS7: СН1 | AT7: СН2 | AU7: НН | AV7: Всего | AW7: ВН | AX7: СН1 | AY7: СН2 | AZ7: НН | BA7: Всего | BB7: ВН | BC7: СН1 | BD7: СН2 | BE7: НН | BF7: Всего | BG7: ВН | BH7: СН1 | BI7: СН2 | BJ7: НН | BK7: Всего | BL7: ВН | BM7: СН1 | BN7: СН2 | BO7: НН
A8: 1 | B8: 2 | C8: 3 | D8: 4 | E8: 5 | F8: 6 | G8: 7 | H8: 8 | I8: 9 | J8: 10 | K8: 11 | L8: 12 | M8: 13 | N8: 14 | O8: 15 | P8: 16 | Q8: 17 | R8: 18 | S8: 19 | T8: 20 | U8: 21 | V8: 22 | W8: 23 | X8: 24 | Y8: 25 | Z8: 26 | AA8: 27 | AB8: 28 | AC8: 29 | AD8: 30 | AE8: 31 | AF8: 32 | AG8: 33 | AH8: 34 | AI8: 35 | AJ8: 36 | AK8: 37 | AL8: 38 | AM8: 39 | AN8: 40 | AO8: 41 | AP8: 42 | AQ8: 43 | AR8: 44 | AS8: 45 | AT8: 46 | AU8: 47 | AV8: 48 | AW8: 49 | AX8: 50 | AY8: 51 | AZ8: 52 | BA8: 53 | BB8: 54 | BC8: 55 | BD8: 56 | BE8: 57 | BF8: 58 | BG8: 59 | BH8: 60 | BI8: 61 | BJ8: 62 | BK8: 63 | BL8: 64 | BM8: 65 | BN8: 66 | BO8: 67
A9: 1. | B9: Поступление эл.энергии в сеть , ВСЕГО | C9: =C19+C21+C22 -> 201.9294 | D9: =D15+D16+D17+D18 -> 200.107 | E9: =E10+E15+E16+E17+E18 -> 1.8224 | F9: =F10+F15+F16+F17+F18 -> 201.9294 | G9: =G10+G15+G16+G17+G18 -> 139.3419524 | H9: =H19+H21+H22 -> 94.928856 | I9: =I15+I16+I17+I18 -> 93.870863 | J9: =J10+J15+J16+J17+J18 -> 1.057993 | K9: =K10+K15+K16+K17+K18 -> 94.928856 | L9: =L10+L15+L16+L17+L18 -> 54.74398774 | M9: =M19+M21+M22 -> 93.050638 | N9: =N15+N16+N17+N18 -> 91.668026 | O9: =O10+O15+O16+O17+O18 -> 1.382612 | P9: =P10+P15+P16+P17+P18 -> 93.050638 | Q9: =Q10+Q15+Q16+Q17+Q18 -> 53.44362423 | R9: =R19+R21+R22 -> 187.979494 | S9: =S15+S16+S17+S18 -> 185.538889 | T9: =T10+T15+T16+T17+T18 -> 2.440605 | U9: =U10+U15+U16+U17+U18 -> 187.979494 | V9: =V10+V15+V16+V17+V18 -> 108.1876118 | W9: =W19+W21+W22 -> 97.42268294 | X9: =X15+X16+X17+X18 -> 96.54344942 | Y9: =Y10+Y15+Y16+Y17+Y18 -> 0.8792335212 | Z9: =Z10+Z15+Z16+Z17+Z18 -> 97.42268294 | AA9: =AA10+AA15+AA16+AA17+AA18 -> 37.14071203 | AB9: =AB19+AB21+AB22 -> 97.42268294 | AC9: =AC15+AC16+AC17+AC18 -> 96.54344942 | AD9: =AD10+AD15+AD16+AD17+AD18 -> 0.8792335212 | AE9: =AE10+AE15+AE16+AE17+AE18 -> 97.42268294 | AF9: =AF10+AF15+AF16+AF17+AF18 -> 37.14071203 | AG9: =AG19+AG21+AG22 -> 194.8453659 | AH9: =AH15+AH16+AH17+AH18 -> 193.0868988 | AI9: =AI10+AI15+AI16+AI17+AI18 -> 1.758467042 | AJ9: =AJ10+AJ15+AJ16+AJ17+AJ18 -> 194.8453659 | AK9: =AK10+AK15+AK16+AK17+AK18 -> 74.28142406 | AL9: =AL19+AL21+AL22 -> 97.0635461 | AM9: =AM15+AM16+AM17+AM18 -> 94.6229411 | AN9: =AN10+AN15+AN16+AN17+AN18 -> 2.440605 | AO9: =AO10+AO15+AO16+AO17+AO18 -> 97.0635461 | AP9: =AP10+AP15+AP16+AP17+AP18 -> 55.21821505 | AQ9: =AQ19+AQ21+AQ22 -> 97.0635461 | AR9: =AR15+AR16+AR17+AR18 -> 94.6229411 | AS9: =AS10+AS15+AS16+AS17+AS18 -> 2.440605 | AT9: =AT10+AT15+AT16+AT17+AT18 -> 97.0635461 | AU9: =AU10+AU15+AU16+AU17+AU18 -> 55.21821505 | AV9: =AV19+AV21+AV22 -> 194.1270922 | AW9: =AW15+AW16+AW17+AW18 -> 191.6864872 | AX9: =AX10+AX15+AX16+AX17+AX18 -> 2.440605 | AY9: =AY10+AY15+AY16+AY17+AY18 -> 194.1270922 | AZ9: =AZ10+AZ15+AZ16+AZ17+AZ18 -> 110.4364301 | BA9: =BA19+BA21+BA22 -> 0 | BB9: =BB15+BB16+BB17+BB18 -> 0 | BC9: =BC10+BC15+BC16+BC17+BC18 -> 0 | BD9: =BD10+BD15+BD16+BD17+BD18 -> 0 | BE9: =BE10+BE15+BE16+BE17+BE18 -> 0 | BF9: =BF19+BF21+BF22 -> 0 | BG9: =BG15+BG16+BG17+BG18 -> 0 | BH9: =BH10+BH15+BH16+BH17+BH18 -> 0 | BI9: =BI10+BI15+BI16+BI17+BI18 -> 0 | BJ9: =BJ10+BJ15+BJ16+BJ17+BJ18 -> 0 | BK9: =BK19+BK21+BK22 -> 0 | BL9: =BL15+BL16+BL17+BL18 -> 0 | BM9: =BM10+BM15+BM16+BM17+BM18 -> 0 | BN9: =BN10+BN15+BN16+BN17+BN18 -> 0 | BO9: =BO10+BO15+BO16+BO17+BO18 -> 0
A10: 1.1. | B10: из смежной сети, всего | C10: х | D10: х | E10: =E12 -> 0 | F10: =F12+F13 -> 201.9294 | G10: =G12+G13+G14 -> 139.3419524 | H10: х | I10: х | J10: =J12 -> 0 | K10: =K12+K13 -> 94.928856 | L10: =L12+L13+L14 -> 54.74398774 | M10: х | N10: х | O10: =O12 -> 0 | P10: =P12+P13 -> 93.050638 | Q10: =Q12+Q13+Q14 -> 53.44362423 | R10: х | S10: х | T10: =T12 -> 0 | U10: =U12+U13 -> 187.979494 | V10: =V12+V13+V14 -> 108.1876118 | W10: х | X10: х | Y10: =Y12 -> 0 | Z10: =Z12+Z13 -> 97.42268294 | AA10: =AA12+AA13+AA14 -> 37.14071203 | AB10: х | AC10: х | AD10: =AD12 -> 0 | AE10: =AE12+AE13 -> 97.42268294 | AF10: =AF12+AF13+AF14 -> 37.14071203 | AG10: х | AH10: х | AI10: =AI12 -> 0 | AJ10: =AJ12+AJ13 -> 194.8453659 | AK10: =AK12+AK13+AK14 -> 74.28142406 | AL10: х | AM10: х | AN10: =AN12 -> 0 | AO10: =AO12+AO13 -> 97.0635461 | AP10: =AP12+AP13+AP14 -> 55.21821505 | AQ10: х | AR10: х | AS10: =AS12 -> 0 | AT10: =AT12+AT13 -> 97.0635461 | AU10: =AU12+AU13+AU14 -> 55.21821505 | AV10: х | AW10: х | AX10: =AX12 -> 0 | AY10: =AY12+AY13 -> 194.1270922 | AZ10: =AZ12+AZ13+AZ14 -> 110.4364301 | BA10: х | BB10: х | BC10: =BC12 -> 0 | BD10: =BD12+BD13 -> 0 | BE10: =BE12+BE13+BE14 -> 0 | BF10: х | BG10: х | BH10: =BH12 -> 0 | BI10: =BI12+BI13 -> 0 | BJ10: =BJ12+BJ13+BJ14 -> 0 | BK10: х | BL10: х | BM10: =BM12 -> 0 | BN10: =BN12+BN13 -> 0 | BO10: =BO12+BO13+BO14 -> 0
B11: в том числе из сети | C11: х | D11: х | E11: х | F11: х | G11: х | H11: х | I11: х | J11: х | K11: х | L11: х | M11: х | N11: х | O11: х | P11: х | Q11: х | R11: х | S11: х | T11: х | U11: х | V11: х | W11: х | X11: х | Y11: х | Z11: х | AA11: х | AB11: х | AC11: х | AD11: х | AE11: х | AF11: х | AG11: х | AH11: х | AI11: х | AJ11: х | AK11: х | AL11: х | AM11: х | AN11: х | AO11: х | AP11: х | AQ11: х | AR11: х | AS11: х | AT11: х | AU11: х | AV11: х | AW11: х | AX11: х | AY11: х | AZ11: х | BA11: х | BB11: х | BC11: х | BD11: х | BE11: х | BF11: х | BG11: х | BH11: х | BI11: х | BJ11: х | BK11: х | BL11: х | BM11: х | BN11: х | BO11: х
A12: 1.1.1. | B12: ВН | C12: х | D12: х | F12: =D9-D19-D21-D22-E12-G12 -> 200.107 | H12: х | I12: х | K12: =I9-I19-I21-I22-J12-L12 -> 93.870863 | M12: х | N12: х | P12: =N9-N19-N21-N22-O12-Q12 -> 91.668026 | R12: х | S12: х | U12: =S9-S19-S21-S22-T12-V12 -> 185.538889 | W12: х | X12: х | Z12: =X9-X19-X21-X22-Y12-AA12 -> 96.54344942 | AB12: х | AC12: х | AE12: =AC9-AC19-AC21-AC22-AD12-AF12 -> 96.54344942 | AG12: х | AH12: х | AJ12: =AH9-AH19-AH21-AH22-AI12-AK12 -> 193.0868988 | AL12: х | AM12: х | AO12: =AM9-AM19-AM21-AM22-AN12-AP12 -> 94.6229411 | AQ12: х | AR12: х | AT12: =AR9-AR19-AR21-AR22-AS12-AU12 -> 94.6229411 | AV12: х | AW12: х | AY12: =AW9-AW19-AW21-AW22-AX12-AZ12 -> 191.6864872 | BA12: х | BB12: х | BD12: =BB9-BB19-BB21-BB22-BC12-BE12 -> 0 | BF12: х | BG12: х | BI12: =BG9-BG19-BG21-BG22-BH12-BJ12 -> 0 | BK12: х | BL12: х | BN12: =BL9-BL19-BL21-BL22-BM12-BO12 -> 0
A13: 1.1.2. | B13: СН1 | C13: х | D13: х | E13: х | F13: =E9-E19-E21-E22-G13 -> 1.8224 | H13: х | I13: х | J13: х | K13: =J9-J19-J21-J22-L13 -> 1.057993 | M13: х | N13: х | O13: х | P13: =O9-O19-O21-O22-Q13 -> 1.382612 | R13: х | S13: х | T13: х | U13: =T9-T19-T21-T22-V13 -> 2.440605 | W13: х | X13: х | Y13: х | Z13: =Y9-Y19-Y21-Y22-AA13 -> 0.8792335212 | AB13: х | AC13: х | AD13: х | AE13: =AD9-AD19-AD21-AD22-AF13 -> 0.8792335212 | AG13: х | AH13: х | AI13: х | AJ13: =AI9-AI19-AI21-AI22-AK13 -> 1.758467042 | AL13: х | AM13: х | AN13: х | AO13: =AN9-AN19-AN21-AN22-AP13 -> 2.440605 | AQ13: х | AR13: х | AS13: х | AT13: =AS9-AS19-AS21-AS22-AU13 -> 2.440605 | AV13: х | AW13: х | AX13: х | AY13: =AX9-AX19-AX21-AX22-AZ13 -> 2.440605 | BA13: х | BB13: х | BC13: х | BD13: =BC9-BC19-BC21-BC22-BE13 -> 0 | BF13: х | BG13: х | BH13: х | BI13: =BH9-BH19-BH21-BH22-BJ13 -> 0 | BK13: х | BL13: х | BM13: х | BN13: =BM9-BM19-BM21-BM22-BO13 -> 0
A14: 1.1.3. | B14: СН2 | C14: х | D14: х | E14: х | F14: х | G14: =F9-F19-F21-F22 -> 139.3419524 | H14: х | I14: х | J14: х | K14: х | L14: =K9-K19-K21-K22 -> 54.74398774 | M14: х | N14: х | O14: х | P14: х | Q14: =P9-P19-P21-P22 -> 53.44362423 | R14: х | S14: х | T14: х | U14: х | V14: =U9-U19-U21-U22 -> 108.1876118 | W14: х | X14: х | Y14: х | Z14: х | AA14: =Z9-Z19-Z21-Z22 -> 37.14071203 | AB14: х | AC14: х | AD14: х | AE14: х | AF14: =AE9-AE19-AE21-AE22 -> 37.14071203 | AG14: х | AH14: х | AI14: х | AJ14: х | AK14: =AJ9-AJ19-AJ21-AJ22 -> 74.28142406 | AL14: х | AM14: х | AN14: х | AO14: х | AP14: =AO9-AO19-AO21-AO22 -> 55.21821505 | AQ14: х | AR14: х | AS14: х | AT14: х | AU14: =AT9-AT19-AT21-AT22 -> 55.21821505 | AV14: х | AW14: х | AX14: х | AY14: х | AZ14: =AY9-AY19-AY21-AY22 -> 110.4364301 | BA14: х | BB14: х | BC14: х | BD14: х | BE14: =BD9-BD19-BD21-BD22 -> 0 | BF14: х | BG14: х | BH14: х | BI14: х | BJ14: =BI9-BI19-BI21-BI22 -> 0 | BK14: х | BL14: х | BM14: х | BN14: х | BO14: =BN9-BN19-BN21-BN22 -> 0
A15: 1.2. | B15: от электростанций | C15: =SUM(D15:G15) -> 0 | H15: =SUM(I15:L15) -> 0 | M15: =SUM(N15:Q15) -> 0 | R15: =SUM(S15:V15) -> 0 | W15: =SUM(X15:AA15) -> 0 | AB15: =SUM(AC15:AF15) -> 0 | AG15: =SUM(AH15:AK15) -> 0 | AL15: =SUM(AM15:AP15) -> 0 | AQ15: =SUM(AR15:AU15) -> 0 | AV15: =SUM(AW15:AZ15) -> 0 | BA15: =SUM(BB15:BE15) -> 0 | BF15: =SUM(BG15:BJ15) -> 0 | BK15: =SUM(BL15:BO15) -> 0
A16: 1.3. | B16: от ОАО "ФСК ЕЭС" | C16: =SUM(D16:G16) -> 0 | H16: =SUM(I16:L16) -> 0 | M16: =SUM(N16:Q16) -> 0 | R16: =SUM(S16:V16) -> 0 | W16: =SUM(X16:AA16) -> 0 | AB16: =SUM(AC16:AF16) -> 0 | AG16: =SUM(AH16:AK16) -> 0 | AL16: =SUM(AM16:AP16) -> 0 | AQ16: =SUM(AR16:AU16) -> 0 | AV16: =SUM(AW16:AZ16) -> 0 | BA16: =SUM(BB16:BE16) -> 0 | BF16: =SUM(BG16:BJ16) -> 0 | BK16: =SUM(BL16:BO16) -> 0
A17: 1.4. | B17: от филиала "Владимирэнерго" ОАО "МРСК Центра и Приволжья" | C17: =SUM(D17:G17) -> 201.9294 | D17: 200.107 | E17: 1.8224 | H17: =SUM(I17:L17) -> 94.928856 | I17: 93.870863 | J17: 1.057993 | M17: =SUM(N17:Q17) -> 93.050638 | N17: 91.668026 | O17: 1.382612 | R17: =SUM(S17:V17) -> 187.979494 | S17: 185.538889 | T17: 2.440605 | W17: =SUM(X17:AA17) -> 97.42268294 | X17: 96.54344942 | Y17: 0.8792335212 | AB17: =SUM(AC17:AF17) -> 97.42268294 | AC17: 96.54344942 | AD17: 0.8792335212 | AG17: =SUM(AH17:AK17) -> 194.8453659 | AH17: =X17+AC17 -> 193.0868988 | AI17: =Y17+AD17 -> 1.758467042 | AL17: =SUM(AM17:AP17) -> 97.0635461 | AM17: 94.6229411 | AN17: 2.440605 | AQ17: =SUM(AR17:AU17) -> 97.0635461 | AR17: 94.6229411 | AS17: 2.440605 | AV17: =SUM(AW17:AZ17) -> 194.1270922 | AW17: 191.6864872 | AX17: 2.440605 | BA17: =SUM(BB17:BE17) -> 0 | BF17: =SUM(BG17:BJ17) -> 0 | BK17: =SUM(BL17:BO17) -> 0
A18: 1.5. | B18: от других сетевых организаций | C18: =SUM(D18:G18) -> 0 | H18: =SUM(I18:L18) -> 0 | M18: =SUM(N18:Q18) -> 0 | R18: =SUM(S18:V18) -> 0 | W18: =SUM(X18:AA18) -> 0 | AB18: =SUM(AC18:AF18) -> 0 | AG18: =SUM(AH18:AK18) -> 0 | AL18: =SUM(AM18:AP18) -> 0 | AQ18: =SUM(AR18:AU18) -> 0 | AV18: =SUM(AW18:AZ18) -> 0 | BA18: =SUM(BB18:BE18) -> 0 | BF18: =SUM(BG18:BJ18) -> 0 | BK18: =SUM(BL18:BO18) -> 0
A19: 2. | B19: Потери электроэнергии в сети | C19: =SUM(D19:G19) -> 24.89790402 | D19: =D9*D20/100 -> 0 | E19: =E9*E20/100 -> 0 | F19: =F9*F20/100 -> 11.59074756 | G19: =G9*G20/100 -> 13.30715646 | H19: =SUM(I19:L19) -> 7.229301112 | I19: =I9*I20/100 -> 0 | J19: =J9*J20/100 -> 0 | K19: =K9*K20/100 -> 3.369576256 | L19: =L9*L20/100 -> 3.859724856 | M19: =SUM(N19:Q19) -> 8.312679037 | N19: =N9*N20/100 -> 0 | O19: =O9*O20/100 -> 0 | P19: =P9*P20/100 -> 3.874538772 | Q19: =Q9*Q20/100 -> 4.438140264 | R19: =SUM(S19:V19) -> 15.54197519 | S19: =S9*S20/100 -> 0 | T19: =T9*T20/100 -> 0 | U19: =U9*U20/100 -> 7.244115194 | V19: =V9*V20/100 -> 8.29786 | W19: =SUM(X19:AA19) -> 9.139 | X19: =X9*X20/100 -> 0 | Y19: =Y9*Y20/100 -> 0 | Z19: =Z9*Z20/100 -> 5.592062001 | AA19: =AA9*AA20/100 -> 3.546937999 | AB19: =SUM(AC19:AF19) -> 9.139 | AC19: =AC9*AC20/100 -> 0 | AD19: =AD9*AD20/100 -> 0 | AE19: =AE9*AE20/100 -> 5.592062001 | AF19: =AF9*AF20/100 -> 3.546937999 | AG19: =SUM(AH19:AK19) -> 18.278 | AH19: =AH9*AH20/100 -> 0 | AI19: =AI9*AI20/100 -> 0 | AJ19: =AJ9*AJ20/100 -> 11.184124 | AK19: =AK9*AK20/100 -> 7.093875998 | AL19: =SUM(AM19:AP19) -> 10.84478708 | AM19: =AM9*AM20/100 -> 0 | AN19: =AN9*AN20/100 -> 0 | AO19: =AO9*AO20/100 -> 5.571447546 | AP19: =AP9*AP20/100 -> 5.273339538 | AQ19: =SUM(AR19:AU19) -> 10.84478708 | AR19: =AR9*AR20/100 -> 0 | AS19: =AS9*AS20/100 -> 0 | AT19: =AT9*AT20/100 -> 5.571447546 | AU19: =AU9*AU20/100 -> 5.273339538 | AV19: =SUM(AW19:AZ19) -> 21.68957417 | AW19: =AW9*AW20/100 -> 0 | AX19: =AX9*AX20/100 -> 0 | AY19: =AY9*AY20/100 -> 11.14289509 | AZ19: =AZ9*AZ20/100 -> 10.54667908 | BA19: =SUM(BB19:BE19) -> 0 | BB19: =BB9*BB20/100 -> 0 | BC19: =BC9*BC20/100 -> 0 | BD19: =BD9*BD20/100 -> 0 | BE19: =BE9*BE20/100 -> 0 | BF19: =SUM(BG19:BJ19) -> 0 | BG19: =BG9*BG20/100 -> 0 | BH19: =BH9*BH20/100 -> 0 | BI19: =BI9*BI20/100 -> 0 | BJ19: =BJ9*BJ20/100 -> 0 | BK19: =SUM(BL19:BO19) -> 0 | BL19: =BL9*BL20/100 -> 0 | BM19: =BM9*BM20/100 -> 0 | BN19: =BN9*BN20/100 -> 0 | BO19: =BO9*BO20/100 -> 0
A20: 2.1. | B20: то же в % (п.2./п.1.) | C20: =IF(C9=0,0,C19/C9*100) -> 12.33000446 | F20: 5.74 | G20: 9.55 | H20: =IF(H9=0,0,H19/H9*100) -> 7.615493768 | K20: 3.5495806 | L20: 7.0505 | M20: =IF(M9=0,0,M19/M9*100) -> 8.933500313 | P20: 4.1639035 | Q20: 8.30434 | R20: =IF(R9=0,0,R19/R9*100) -> 8.2679099 | U20: 3.8536731 | V20: 7.66988 | W20: =IF(W9=0,0,W19/W9*100) -> 9.380772243 | Z20: 5.74 | AA20: 9.55 | AB20: =IF(AB9=0,0,AB19/AB9*100) -> 9.380772243 | AE20: 5.74 | AF20: 9.55 | AG20: =IF(AG9=0,0,AG19/AG9*100) -> 9.380772243 | AJ20: 5.74 | AK20: 9.55 | AL20: =IF(AL9=0,0,AL19/AL9*100) -> 11.17287336 | AO20: 5.74 | AP20: 9.55 | AQ20: =IF(AQ9=0,0,AQ19/AQ9*100) -> 11.17287336 | AT20: 5.74 | AU20: 9.55 | AV20: =IF(AV9=0,0,AV19/AV9*100) -> 11.17287336 | AY20: 5.74 | AZ20: 9.55 | BA20: =IF(BA9=0,0,BA19/BA9*100) -> 0 | BF20: =IF(BF9=0,0,BF19/BF9*100) -> 0 | BK20: =IF(BK9=0,0,BK19/BK9*100) -> 0
A21: 3. | B21: Расход электроэнергии на производственные и хознужды | C21: =SUM(D21:G21) -> 0 | H21: =SUM(I21:L21) -> 0 | M21: =SUM(N21:Q21) -> 0 | R21: =SUM(S21:V21) -> 0 | W21: =SUM(X21:AA21) -> 0 | AB21: =SUM(AC21:AF21) -> 0 | AG21: =SUM(AH21:AK21) -> 0 | AL21: =SUM(AM21:AP21) -> 0 | AQ21: =SUM(AR21:AU21) -> 0 | AV21: =SUM(AW21:AZ21) -> 0 | BA21: =SUM(BB21:BE21) -> 0 | BF21: =SUM(BG21:BJ21) -> 0 | BK21: =SUM(BL21:BO21) -> 0
A22: 4. | B22: Полезный отпуск из сети | C22: =SUM(D22:G22) -> 177.031496 | D22: =D23+D24+D25 -> 0 | E22: =E23+E24+E25 -> 0 | F22: =F23+F24+F25 -> 50.9967 | G22: =G9-G19-G21 -> 126.034796 | H22: =SUM(I22:L22) -> 87.69955489 | I22: =I23+I24+I25 -> 0 | J22: =J23+J24+J25 -> 0 | K22: =K23+K24+K25 -> 36.815292 | L22: =L9-L19-L21 -> 50.88426289 | M22: =SUM(N22:Q22) -> 84.73795896 | N22: =N23+N24+N25 -> 0 | O22: =O23+O24+O25 -> 0 | P22: =P23+P24+P25 -> 35.732475 | Q22: =Q9-Q19-Q21 -> 49.00548396 | R22: =SUM(S22:V22) -> 172.4375188 | S22: =S23+S24+S25 -> 0 | T22: =T23+T24+T25 -> 0 | U22: =U23+U24+U25 -> 72.547767 | V22: =V9-V19-V21 -> 99.88975181 | W22: =SUM(X22:AA22) -> 88.28368294 | X22: =X23+X24+X25 -> 0 | Y22: =Y23+Y24+Y25 -> 0 | Z22: =Z23+Z24+Z25 -> 54.68990891 | AA22: =AA9-AA19-AA21 -> 33.59377403 | AB22: =SUM(AC22:AF22) -> 88.28368294 | AC22: =AC23+AC24+AC25 -> 0 | AD22: =AD23+AD24+AD25 -> 0 | AE22: =AE23+AE24+AE25 -> 54.68990891 | AF22: =AF9-AF19-AF21 -> 33.59377403 | AG22: =SUM(AH22:AK22) -> 176.5673659 | AH22: =AH23+AH24+AH25 -> 0 | AI22: =AI23+AI24+AI25 -> 0 | AJ22: =AJ23+AJ24+AJ25 -> 109.3798178 | AK22: =AK9-AK19-AK21 -> 67.18754806 | AL22: =SUM(AM22:AP22) -> 86.21875902 | AM22: =AM23+AM24+AM25 -> 0 | AN22: =AN23+AN24+AN25 -> 0 | AO22: =AO23+AO24+AO25 -> 36.2738835 | AP22: =AP9-AP19-AP21 -> 49.94487552 | AQ22: =SUM(AR22:AU22) -> 86.21875902 | AR22: =AR23+AR24+AR25 -> 0 | AS22: =AS23+AS24+AS25 -> 0 | AT22: =AT23+AT24+AT25 -> 36.2738835 | AU22: =AU9-AU19-AU21 -> 49.94487552 | AV22: =SUM(AW22:AZ22) -> 172.437518 | AW22: =AW23+AW24+AW25 -> 0 | AX22: =AX23+AX24+AX25 -> 0 | AY22: =AY23+AY24+AY25 -> 72.547767 | AZ22: =AZ9-AZ19-AZ21 -> 99.88975103 | BA22: =SUM(BB22:BE22) -> 0 | BB22: =BB23+BB24+BB25 -> 0 | BC22: =BC23+BC24+BC25 -> 0 | BD22: =BD23+BD24+BD25 -> 0 | BE22: =BE9-BE19-BE21 -> 0 | BF22: =SUM(BG22:BJ22) -> 0 | BG22: =BG23+BG24+BG25 -> 0 | BH22: =BH23+BH24+BH25 -> 0 | BI22: =BI23+BI24+BI25 -> 0 | BJ22: =BJ9-BJ19-BJ21 -> 0 | BK22: =SUM(BL22:BO22) -> 0 | BL22: =BL23+BL24+BL25 -> 0 | BM22: =BM23+BM24+BM25 -> 0 | BN22: =BN23+BN24+BN25 -> 0 | BO22: =BO9-BO19-BO21 -> 0
A23: 4.1. | B23: потребителям, присоединенным к сети | C23: =SUM(D23:G23) -> 154.7282 | F23: 36.3057 | G23: 118.4225 | H23: =SUM(I23:L23) -> 83.165785 | K23: 32.940327 | L23: 50.225458 | M23: =SUM(N23:Q23) -> 80.895667 | P23: 32.343854 | Q23: 48.551813 | R23: =SUM(S23:V23) -> 164.061452 | U23: 65.284181 | V23: 98.777271 | W23: =SUM(X23:AA23) -> 70.49974356 | Z23: 38.93497865 | AA23: 31.56476491 | AB23: =SUM(AC23:AF23) -> 70.49974356 | AE23: 38.93497865 | AF23: 31.56476491 | AG23: =SUM(AH23:AK23) -> 140.9994871 | AJ23: =Z23+AE23 -> 77.86995731 | AK23: =AA23+AF23 -> 63.12952982 | AL23: =SUM(AM23:AP23) -> 82.030726 | AO23: 32.6420905 | AP23: 49.3886355 | AQ23: =SUM(AR23:AU23) -> 82.030726 | AT23: 32.6420905 | AU23: 49.3886355 | AV23: =SUM(AW23:AZ23) -> 164.061452 | AY23: 65.284181 | AZ23: 98.777271 | BA23: =SUM(BB23:BE23) -> 0 | BF23: =SUM(BG23:BJ23) -> 0 | BK23: =SUM(BL23:BO23) -> 0
A24: 4.2. | B24: переток в филиал "Владимирэнерго" ОАО "МРСК Центра и Приволжья" | C24: =SUM(D24:G24) -> 0 | H24: =SUM(I24:L24) -> 0 | M24: =SUM(N24:Q24) -> 0 | R24: =SUM(S24:V24) -> 0 | W24: =SUM(X24:AA24) -> 0 | AB24: =SUM(AC24:AF24) -> 0 | AG24: =SUM(AH24:AK24) -> 0 | AL24: =SUM(AM24:AP24) -> 0 | AQ24: =SUM(AR24:AU24) -> 0 | AV24: =SUM(AW24:AZ24) -> 0 | BA24: =SUM(BB24:BE24) -> 0 | BF24: =SUM(BG24:BJ24) -> 0 | BK24: =SUM(BL24:BO24) -> 0
A25: 4.3. | B25: переток в другие сетевые организации | C25: =SUM(D25:G25) -> 22.3033 | F25: 14.691 | G25: 7.6123 | H25: =SUM(I25:L25) -> 4.533772 | K25: 3.874965 | L25: 0.658807 | M25: =SUM(N25:Q25) -> 3.842294 | P25: 3.388621 | Q25: 0.453673 | R25: =SUM(S25:V25) -> 8.376066 | U25: 7.263586 | V25: 1.11248 | W25: =SUM(X25:AA25) -> 17.78394045 | Z25: 15.75493026 | AA25: 2.029010196 | AB25: =SUM(AC25:AF25) -> 17.78394045 | AE25: 15.75493026 | AF25: 2.029010196 | AG25: =SUM(AH25:AK25) -> 35.5678809 | AJ25: =Z25+AE25 -> 31.50986051 | AK25: 4.058020392 | AL25: =SUM(AM25:AP25) -> 4.188033 | AO25: 3.631793 | AP25: 0.55624 | AQ25: =SUM(AR25:AU25) -> 4.188033 | AT25: 3.631793 | AU25: 0.55624 | AV25: =SUM(AW25:AZ25) -> 8.376066 | AY25: 7.263586 | AZ25: 1.11248 | BA25: =SUM(BB25:BE25) -> 0 | BF25: =SUM(BG25:BJ25) -> 0 | BK25: =SUM(BL25:BO25) -> 0
B26: Проверка | D26: =D9-D19-D21-D23-D24-D25-E12-F12-G12 -> 0 | E26: =E9-E19-E21-E23-E24-E25-F13-G13 -> 0 | F26: =F9-F19-F21-F23-F24-F25-G14 -> 0 | G26: =G9-G19-G21-G23-G24-G25 -> -4.01802003e-06 | I26: =I9-I19-I21-I23-I24-I25-J12-K12-L12 -> 0 | J26: =J9-J19-J21-J23-J24-J25-K13-L13 -> 0 | K26: =K9-K19-K21-K23-K24-K25-L14 -> 0 | L26: =L9-L19-L21-L23-L24-L25 -> -2.112242026e-06 | N26: =N9-N19-N21-N23-N24-N25-O12-P12-Q12 -> 0 | O26: =O9-O19-O21-O23-O24-O25-P13-Q13 -> 0 | P26: =P9-P19-P21-P23-P24-P25-Q14 -> 0 | Q26: =Q9-Q19-Q21-Q23-Q24-Q25 -> -2.036632109e-06 | S26: =S9-S19-S21-S23-S24-S25-T12-U12-V12 -> 0 | T26: =T9-T19-T21-T23-T24-T25-U13-V13 -> 0 | U26: =U9-U19-U21-U23-U24-U25-V14 -> 0 | V26: =V9-V19-V21-V23-V24-V25 -> 8.058040828e-07 | X26: =X9-X19-X21-X23-X24-X25-Y12-Z12-AA12 -> 0 | Y26: =Y9-Y19-Y21-Y23-Y24-Y25-Z13-AA13 -> 0 | Z26: =Z9-Z19-Z21-Z23-Z24-Z25-AA14 -> 0 | AA26: =AA9-AA19-AA21-AA23-AA24-AA25 -> -1.070977707e-06 | AC26: =AC9-AC19-AC21-AC23-AC24-AC25-AD12-AE12-AF12 -> 0 | AD26: =AD9-AD19-AD21-AD23-AD24-AD25-AE13-AF13 -> 0 | AE26: =AE9-AE19-AE21-AE23-AE24-AE25-AF14 -> 0 | AF26: =AF9-AF19-AF21-AF23-AF24-AF25 -> -1.070977707e-06 | AH26: =AH9-AH19-AH21-AH23-AH24-AH25-AI12-AJ12-AK12 -> 0 | AI26: =AI9-AI19-AI21-AI23-AI24-AI25-AJ13-AK13 -> 0 | AJ26: =AJ9-AJ19-AJ21-AJ23-AJ24-AJ25-AK14 -> 0 | AK26: =AK9-AK19-AK21-AK23-AK24-AK25 -> -2.141955413e-06 | AM26: =AM9-AM19-AM21-AM23-AM24-AM25-AN12-AO12-AP12 -> 0 | AN26: =AN9-AN19-AN21-AN23-AN24-AN25-AO13-AP13 -> 0 | AO26: =AO9-AO19-AO21-AO23-AO24-AO25-AP14 -> 0 | AP26: =AP9-AP19-AP21-AP23-AP24-AP25 -> 1.621637125e-08 | AR26: =AR9-AR19-AR21-AR23-AR24-AR25-AS12-AT12-AU12 -> 0 | AS26: =AS9-AS19-AS21-AS23-AS24-AS25-AT13-AU13 -> 0 | AT26: =AT9-AT19-AT21-AT23-AT24-AT25-AU14 -> 0 | AU26: =AU9-AU19-AU21-AU23-AU24-AU25 -> 1.621637125e-08 | AW26: =AW9-AW19-AW21-AW23-AW24-AW25-AX12-AY12-AZ12 -> 0 | AX26: =AX9-AX19-AX21-AX23-AX24-AX25-AY13-AZ13 -> 0 | AY26: =AY9-AY19-AY21-AY23-AY24-AY25-AZ14 -> 0 | AZ26: =AZ9-AZ19-AZ21-AZ23-AZ24-AZ25 -> 3.243271407e-08 | BB26: =BB9-BB19-BB21-BB23-BB24-BB25-BC12-BD12-BE12 -> 0 | BC26: =BC9-BC19-BC21-BC23-BC24-BC25-BD13-BE13 -> 0 | BD26: =BD9-BD19-BD21-BD23-BD24-BD25-BE14 -> 0 | BE26: =BE9-BE19-BE21-BE23-BE24-BE25 -> 0 | BG26: =BG9-BG19-BG21-BG23-BG24-BG25-BH12-BI12-BJ12 -> 0 | BH26: =BH9-BH19-BH21-BH23-BH24-BH25-BI13-BJ13 -> 0 | BI26: =BI9-BI19-BI21-BI23-BI24-BI25-BJ14 -> 0 | BJ26: =BJ9-BJ19-BJ21-BJ23-BJ24-BJ25 -> 0 | BL26: =BL9-BL19-BL21-BL23-BL24-BL25-BM12-BN12-BO12 -> 0 | BM26: =BM9-BM19-BM21-BM23-BM24-BM25-BN13-BO13 -> 0 | BN26: =BN9-BN19-BN21-BN23-BN24-BN25-BO14 -> 0 | BO26: =BO9-BO19-BO21-BO23-BO24-BO25 -> 0
B28: Примечание
B30: Расшифровка п. 1.5. (Поступление от других сетевых организаций)
A31: № | B31: Наименование других сетевых организаций | C31: Всего | D31: ВН | E31: СН1 | F31: СН2 | G31: НН | H31: Всего | I31: ВН | J31: СН1 | K31: СН2 | L31: НН | M31: Всего | N31: ВН | O31: СН1 | P31: СН2 | Q31: НН | R31: Всего | S31: ВН | T31: СН1 | U31: СН2 | V31: НН | W31: Всего | X31: ВН | Y31: СН1 | Z31: СН2 | AA31: НН | AB31: Всего | AC31: ВН | AD31: СН1 | AE31: СН2 | AF31: НН | AG31: Всего | AH31: ВН | AI31: СН1 | AJ31: СН2 | AK31: НН | AL31: Всего | AM31: ВН | AN31: СН1 | AO31: СН2 | AP31: НН | AQ31: Всего | AR31: ВН | AS31: СН1 | AT31: СН2 | AU31: НН | AV31: Всего | AW31: ВН | AX31: СН1 | AY31: СН2 | AZ31: НН | BA31: Всего | BB31: ВН | BC31: СН1 | BD31: СН2 | BE31: НН | BF31: Всего | BG31: ВН | BH31: СН1 | BI31: СН2 | BJ31: НН | BK31: Всего | BL31: ВН | BM31: СН1 | BN31: СН2 | BO31: НН
C32: =SUM(D32:G32) -> 0 | H32: =SUM(I32:L32) -> 0 | M32: =SUM(N32:Q32) -> 0 | R32: =SUM(S32:V32) -> 0 | W32: =SUM(X32:AA32) -> 0 | AB32: =SUM(AC32:AF32) -> 0 | AG32: =SUM(AH32:AK32) -> 0 | AL32: =SUM(AM32:AP32) -> 0 | AQ32: =SUM(AR32:AU32) -> 0 | AV32: =SUM(AW32:AZ32) -> 0 | BA32: =SUM(BB32:BE32) -> 0 | BF32: =SUM(BG32:BJ32) -> 0 | BK32: =SUM(BL32:BO32) -> 0
C33: =SUM(D33:G33) -> 0 | H33: =SUM(I33:L33) -> 0 | M33: =SUM(N33:Q33) -> 0 | R33: =SUM(S33:V33) -> 0 | W33: =SUM(X33:AA33) -> 0 | AB33: =SUM(AC33:AF33) -> 0 | AG33: =SUM(AH33:AK33) -> 0 | AL33: =SUM(AM33:AP33) -> 0 | AQ33: =SUM(AR33:AU33) -> 0 | AV33: =SUM(AW33:AZ33) -> 0 | BA33: =SUM(BB33:BE33) -> 0 | BF33: =SUM(BG33:BJ33) -> 0 | BK33: =SUM(BL33:BO33) -> 0
C34: =SUM(D34:G34) -> 0 | H34: =SUM(I34:L34) -> 0 | M34: =SUM(N34:Q34) -> 0 | R34: =SUM(S34:V34) -> 0 | W34: =SUM(X34:AA34) -> 0 | AB34: =SUM(AC34:AF34) -> 0 | AG34: =SUM(AH34:AK34) -> 0 | AL34: =SUM(AM34:AP34) -> 0 | AQ34: =SUM(AR34:AU34) -> 0 | AV34: =SUM(AW34:AZ34) -> 0 | BA34: =SUM(BB34:BE34) -> 0 | BF34: =SUM(BG34:BJ34) -> 0 | BK34: =SUM(BL34:BO34) -> 0
C35: =SUM(D35:G35) -> 0 | H35: =SUM(I35:L35) -> 0 | M35: =SUM(N35:Q35) -> 0 | R35: =SUM(S35:V35) -> 0 | W35: =SUM(X35:AA35) -> 0 | AB35: =SUM(AC35:AF35) -> 0 | AG35: =SUM(AH35:AK35) -> 0 | AL35: =SUM(AM35:AP35) -> 0 | AQ35: =SUM(AR35:AU35) -> 0 | AV35: =SUM(AW35:AZ35) -> 0 | BA35: =SUM(BB35:BE35) -> 0 | BF35: =SUM(BG35:BJ35) -> 0 | BK35: =SUM(BL35:BO35) -> 0
A36: Добавить
B37: Итого | C37: =SUM(C32:C35) -> 0 | D37: =SUM(D32:D35) -> 0 | E37: =SUM(E32:E35) -> 0 | F37: =SUM(F32:F35) -> 0 | G37: =SUM(G32:G35) -> 0 | H37: =SUM(H32:H35) -> 0 | I37: 0 | J37: 0 | K37: 0 | L37: 0 | M37: 0 | N37: 0 | O37: 0 | P37: 0 | Q37: 0 | R37: 0 | S37: 0 | T37: 0 | U37: 0 | V37: 0 | W37: 0 | X37: 0 | Y37: 0 | Z37: 0 | AA37: 0 | AB37: 0 | AC37: 0 | AD37: 0 | AE37: 0 | AF37: 0 | AG37: 0 | AH37: 0 | AI37: 0 | AJ37: 0 | AK37: 0 | AL37: 0 | AM37: 0 | AN37: 0 | AO37: 0 | AP37: 0 | AQ37: 0 | AR37: 0 | AS37: 0 | AT37: 0 | AU37: 0 | AV37: =SUM(AV32:AV35) -> 0 | AW37: =SUM(AW32:AW35) -> 0 | AX37: =SUM(AX32:AX35) -> 0 | AY37: =SUM(AY32:AY35) -> 0 | AZ37: =SUM(AZ32:AZ35) -> 0 | BA37: =SUM(BA32:BA35) -> 0 | BB37: 0 | BC37: 0 | BD37: 0 | BE37: 0 | BF37: 0 | BG37: 0 | BH37: 0 | BI37: 0 | BJ37: 0 | BK37: =SUM(BK32:BK35) -> 0 | BL37: =SUM(BL32:BL35) -> 0 | BM37: =SUM(BM32:BM35) -> 0 | BN37: =SUM(BN32:BN35) -> 0 | BO37: =SUM(BO32:BO35) -> 0
B39: Расшифровка п. 4.3. (Полезный отпуск - переток в другие сетевые организации)
A40: № | B40: Наименование других сетевых организаций | C40: Всего | D40: ВН | E40: СН1 | F40: СН2 | G40: НН | H40: Всего | I40: ВН | J40: СН1 | K40: СН2 | L40: НН | M40: Всего | N40: ВН | O40: СН1 | P40: СН2 | Q40: НН | R40: Всего | S40: ВН | T40: СН1 | U40: СН2 | V40: НН | W40: Всего | X40: ВН | Y40: СН1 | Z40: СН2 | AA40: НН | AB40: Всего | AC40: ВН | AD40: СН1 | AE40: СН2 | AF40: НН | AG40: Всего | AH40: ВН | AI40: СН1 | AJ40: СН2 | AK40: НН | AL40: Всего | AM40: ВН | AN40: СН1 | AO40: СН2 | AP40: НН | AQ40: Всего | AR40: ВН | AS40: СН1 | AT40: СН2 | AU40: НН | AV40: Всего | AW40: ВН | AX40: СН1 | AY40: СН2 | AZ40: НН | BA40: Всего | BB40: ВН | BC40: СН1 | BD40: СН2 | BE40: НН | BF40: Всего | BG40: ВН | BH40: СН1 | BI40: СН2 | BJ40: НН | BK40: Всего | BL40: ВН | BM40: СН1 | BN40: СН2 | BO40: НН
C41: =SUM(D41:G41) -> 0 | H41: =SUM(I41:L41) -> 0 | M41: =SUM(N41:Q41) -> 0 | R41: =SUM(S41:V41) -> 0 | W41: =SUM(X41:AA41) -> 0 | AB41: =SUM(AC41:AF41) -> 0 | AG41: =SUM(AH41:AK41) -> 0 | AL41: =SUM(AM41:AP41) -> 0 | AQ41: =SUM(AR41:AU41) -> 0 | AV41: =SUM(AW41:AZ41) -> 0 | BA41: =SUM(BB41:BE41) -> 0 | BF41: =SUM(BG41:BJ41) -> 0 | BK41: =SUM(BL41:BO41) -> 0
C42: 0 | H42: 0 | M42: 0 | R42: 0 | W42: 0 | AB42: 0 | AG42: 0 | AL42: 0 | AQ42: 0 | AV42: 0 | BA42: 0 | BF42: 0 | BK42: 0
C43: 0 | H43: 0 | M43: 0 | R43: 0 | W43: 0 | AB43: 0 | AG43: 0 | AL43: 0 | AQ43: 0 | AV43: 0 | BA43: 0 | BF43: 0 | BK43: 0
C44: 0 | H44: 0 | M44: 0 | R44: 0 | W44: 0 | AB44: 0 | AG44: 0 | AL44: 0 | AQ44: 0 | AV44: 0 | BA44: 0 | BF44: 0 | BK44: 0
C45: 0 | H45: 0 | M45: 0 | R45: 0 | W45: 0 | AB45: 0 | AG45: 0 | AL45: 0 | AQ45: 0 | AV45: 0 | BA45: 0 | BF45: 0 | BK45: 0
C46: 0 | H46: 0 | M46: 0 | R46: 0 | W46: 0 | AB46: 0 | AG46: 0 | AL46: 0 | AQ46: 0 | AV46: 0 | BA46: 0 | BF46: 0 | BK46: 0
A47: Добавить
B48: Итого | C48: =SUM(C41:C46) -> 0 | D48: =SUM(D41:D46) -> 0 | E48: =SUM(E41:E46) -> 0 | F48: =SUM(F41:F46) -> 0 | G48: =SUM(G41:G46) -> 0 | H48: =SUM(H41:H46) -> 0 | I48: 0 | J48: 0 | K48: 0 | L48: 0 | M48: 0 | N48: 0 | O48: 0 | P48: 0 | Q48: 0 | R48: 0 | S48: 0 | T48: 0 | U48: 0 | V48: 0 | W48: 0 | X48: 0 | Y48: 0 | Z48: 0 | AA48: 0 | AB48: 0 | AC48: 0 | AD48: 0 | AE48: 0 | AF48: 0 | AG48: 0 | AH48: 0 | AI48: 0 | AJ48: 0 | AK48: 0 | AL48: 0 | AM48: 0 | AN48: 0 | AO48: 0 | AP48: 0 | AQ48: 0 | AR48: 0 | AS48: 0 | AT48: 0 | AU48: 0 | AV48: =SUM(AV41:AV46) -> 0 | AW48: =SUM(AW41:AW46) -> 0 | AX48: =SUM(AX41:AX46) -> 0 | AY48: =SUM(AY41:AY46) -> 0 | AZ48: =SUM(AZ41:AZ46) -> 0 | BA48: =SUM(BA41:BA46) -> 0 | BB48: 0 | BC48: 0 | BD48: 0 | BE48: 0 | BF48: 0 | BG48: 0 | BH48: 0 | BI48: 0 | BJ48: 0 | BK48: =SUM(BK41:BK46) -> 0 | BL48: =SUM(BL41:BL46) -> 0 | BM48: =SUM(BM41:BM46) -> 0 | BN48: =SUM(BN41:BN46) -> 0 | BO48: =SUM(BO41:BO46) -> 0
B50: Расшифровка п. 4.1. (Полезный отпуск потребителям, присоединенным к сети)
A51: № | B51: Наименование сбытовых организаций | C51: Всего | D51: ВН | E51: СН1 | F51: СН2 | G51: НН | H51: Всего | I51: ВН | J51: СН1 | K51: СН2 | L51: НН | M51: Всего | N51: ВН | O51: СН1 | P51: СН2 | Q51: НН | R51: Всего | S51: ВН | T51: СН1 | U51: СН2 | V51: НН | W51: Всего | X51: ВН | Y51: СН1 | Z51: СН2 | AA51: НН | AB51: Всего | AC51: ВН | AD51: СН1 | AE51: СН2 | AF51: НН | AG51: Всего | AH51: ВН | AI51: СН1 | AJ51: СН2 | AK51: НН | AL51: Всего | AM51: ВН | AN51: СН1 | AO51: СН2 | AP51: НН | AQ51: Всего | AR51: ВН | AS51: СН1 | AT51: СН2 | AU51: НН | AV51: Всего | AW51: ВН | AX51: СН1 | AY51: СН2 | AZ51: НН | BA51: Всего | BB51: ВН | BC51: СН1 | BD51: СН2 | BE51: НН | BF51: Всего | BG51: ВН | BH51: СН1 | BI51: СН2 | BJ51: НН | BK51: Всего | BL51: ВН | BM51: СН1 | BN51: СН2 | BO51: НН
A52: 1. | B52: ОАО "Владимирэнергосбыт" всего, в том числе: | C52: =D52+E52+F52+G52 -> 0 | D52: =D53+D54 -> 0 | E52: =E53+E54 -> 0 | F52: =F53+F54 -> 0 | G52: =G53+G54 -> 0 | H52: =I52+J52+K52+L52 -> 0 | I52: =I53+I54 -> 0 | J52: =J53+J54 -> 0 | K52: =K53+K54 -> 0 | L52: =L53+L54 -> 0 | M52: =N52+O52+P52+Q52 -> 0 | N52: =N53+N54 -> 0 | O52: =O53+O54 -> 0 | P52: =P53+P54 -> 0 | Q52: =Q53+Q54 -> 0 | R52: =S52+T52+U52+V52 -> 0 | S52: =S53+S54 -> 0 | T52: =T53+T54 -> 0 | U52: =U53+U54 -> 0 | V52: =V53+V54 -> 0 | W52: =X52+Y52+Z52+AA52 -> 0 | X52: =X53+X54 -> 0 | Y52: =Y53+Y54 -> 0 | Z52: =Z53+Z54 -> 0 | AA52: =AA53+AA54 -> 0 | AB52: =AC52+AD52+AE52+AF52 -> 0 | AC52: =AC53+AC54 -> 0 | AD52: =AD53+AD54 -> 0 | AE52: =AE53+AE54 -> 0 | AF52: =AF53+AF54 -> 0 | AG52: =AH52+AI52+AJ52+AK52 -> 0 | AH52: =AH53+AH54 -> 0 | AI52: =AI53+AI54 -> 0 | AJ52: =AJ53+AJ54 -> 0 | AK52: =AK53+AK54 -> 0 | AL52: =AM52+AN52+AO52+AP52 -> 0 | AM52: =AM53+AM54 -> 0 | AN52: =AN53+AN54 -> 0 | AO52: =AO53+AO54 -> 0 | AP52: =AP53+AP54 -> 0 | AQ52: =AR52+AS52+AT52+AU52 -> 0 | AR52: =AR53+AR54 -> 0 | AS52: =AS53+AS54 -> 0 | AT52: =AT53+AT54 -> 0 | AU52: =AU53+AU54 -> 0 | AV52: =AW52+AX52+AY52+AZ52 -> 0 | AW52: =AW53+AW54 -> 0 | AX52: =AX53+AX54 -> 0 | AY52: =AY53+AY54 -> 0 | AZ52: =AZ53+AZ54 -> 0 | BA52: =BB52+BC52+BD52+BE52 -> 0 | BB52: =BB53+BB54 -> 0 | BC52: =BC53+BC54 -> 0 | BD52: =BD53+BD54 -> 0 | BE52: =BE53+BE54 -> 0 | BF52: =BG52+BH52+BI52+BJ52 -> 0 | BG52: =BG53+BG54 -> 0 | BH52: =BH53+BH54 -> 0 | BI52: =BI53+BI54 -> 0 | BJ52: =BJ53+BJ54 -> 0 | BK52: =BL52+BM52+BN52+BO52 -> 0 | BL52: =BL53+BL54 -> 0 | BM52: =BM53+BM54 -> 0 | BN52: =BN53+BN54 -> 0 | BO52: =BO53+BO54 -> 0
A53: 1.1. | B53: прочие потребители | C53: =D53+E53+F53+G53 -> 0 | H53: =I53+J53+K53+L53 -> 0 | M53: =N53+O53+P53+Q53 -> 0 | R53: =S53+T53+U53+V53 -> 0 | W53: =X53+Y53+Z53+AA53 -> 0 | AB53: =AC53+AD53+AE53+AF53 -> 0 | AG53: =AH53+AI53+AJ53+AK53 -> 0 | AL53: =AM53+AN53+AO53+AP53 -> 0 | AQ53: =AR53+AS53+AT53+AU53 -> 0 | AV53: =AW53+AX53+AY53+AZ53 -> 0 | BA53: =BB53+BC53+BD53+BE53 -> 0 | BF53: =BG53+BH53+BI53+BJ53 -> 0 | BK53: =BL53+BM53+BN53+BO53 -> 0
A54: 1.2. | B54: население | C54: =D54+E54+F54+G54 -> 0 | H54: 0 | M54: 0 | R54: 0 | W54: 0 | AB54: 0 | AG54: 0 | AL54: 0 | AQ54: 0 | AV54: 0 | BA54: 0 | BF54: 0 | BK54: 0
A55: 2. | B55: ОАО "ВКС" всего, в том числе: | C55: 0 | D55: =D56+D57 -> 0 | E55: =E56+E57 -> 0 | F55: =F56+F57 -> 0 | G55: =G56+G57 -> 0 | H55: 0 | I55: =I56+I57 -> 0 | J55: =J56+J57 -> 0 | K55: =K56+K57 -> 0 | L55: =L56+L57 -> 0 | M55: 0 | N55: =N56+N57 -> 0 | O55: =O56+O57 -> 0 | P55: =P56+P57 -> 0 | Q55: =Q56+Q57 -> 0 | R55: 0 | S55: =S56+S57 -> 0 | T55: =T56+T57 -> 0 | U55: =U56+U57 -> 0 | V55: =V56+V57 -> 0 | W55: 0 | X55: =X56+X57 -> 0 | Y55: =Y56+Y57 -> 0 | Z55: =Z56+Z57 -> 0 | AA55: =AA56+AA57 -> 0 | AB55: 0 | AC55: =AC56+AC57 -> 0 | AD55: =AD56+AD57 -> 0 | AE55: =AE56+AE57 -> 0 | AF55: =AF56+AF57 -> 0 | AG55: 0 | AH55: =AH56+AH57 -> 0 | AI55: =AI56+AI57 -> 0 | AJ55: =AJ56+AJ57 -> 0 | AK55: =AK56+AK57 -> 0 | AL55: 0 | AM55: =AM56+AM57 -> 0 | AN55: =AN56+AN57 -> 0 | AO55: =AO56+AO57 -> 0 | AP55: =AP56+AP57 -> 0 | AQ55: 0 | AR55: =AR56+AR57 -> 0 | AS55: =AS56+AS57 -> 0 | AT55: =AT56+AT57 -> 0 | AU55: =AU56+AU57 -> 0 | AV55: 0 | AW55: =AW56+AW57 -> 0 | AX55: =AX56+AX57 -> 0 | AY55: =AY56+AY57 -> 0 | AZ55: =AZ56+AZ57 -> 0 | BA55: 0 | BB55: =BB56+BB57 -> 0 | BC55: =BC56+BC57 -> 0 | BD55: =BD56+BD57 -> 0 | BE55: =BE56+BE57 -> 0 | BF55: 0 | BG55: =BG56+BG57 -> 0 | BH55: =BH56+BH57 -> 0 | BI55: =BI56+BI57 -> 0 | BJ55: =BJ56+BJ57 -> 0 | BK55: 0 | BL55: =BL56+BL57 -> 0 | BM55: =BM56+BM57 -> 0 | BN55: =BN56+BN57 -> 0 | BO55: =BO56+BO57 -> 0
A56: 2.1. | B56: прочие потребители | C56: 0 | H56: 0 | M56: 0 | R56: 0 | W56: 0 | AB56: 0 | AG56: 0 | AL56: 0 | AQ56: 0 | AV56: 0 | BA56: 0 | BF56: 0 | BK56: 0
A57: 2.2. | B57: население | C57: 0 | H57: 0 | M57: 0 | R57: 0 | W57: 0 | AB57: 0 | AG57: 0 | AL57: 0 | AQ57: 0 | AV57: 0 | BA57: 0 | BF57: 0 | BK57: 0
A58: 3. | B58: ОАО "Русэнергосбыт" | C58: 0 | D58: =D59+D60 -> 0 | E58: =E59+E60 -> 0 | F58: =F59+F60 -> 0 | G58: =G59+G60 -> 0 | H58: 0 | I58: =I59+I60 -> 0 | J58: =J59+J60 -> 0 | K58: =K59+K60 -> 0 | L58: =L59+L60 -> 0 | M58: 0 | N58: =N59+N60 -> 0 | O58: =O59+O60 -> 0 | P58: =P59+P60 -> 0 | Q58: =Q59+Q60 -> 0 | R58: 0 | S58: =S59+S60 -> 0 | T58: =T59+T60 -> 0 | U58: =U59+U60 -> 0 | V58: =V59+V60 -> 0 | W58: 0 | X58: =X59+X60 -> 0 | Y58: =Y59+Y60 -> 0 | Z58: =Z59+Z60 -> 0 | AA58: =AA59+AA60 -> 0 | AB58: 0 | AC58: =AC59+AC60 -> 0 | AD58: =AD59+AD60 -> 0 | AE58: =AE59+AE60 -> 0 | AF58: =AF59+AF60 -> 0 | AG58: 0 | AH58: =AH59+AH60 -> 0 | AI58: =AI59+AI60 -> 0 | AJ58: =AJ59+AJ60 -> 0 | AK58: =AK59+AK60 -> 0 | AL58: 0 | AM58: =AM59+AM60 -> 0 | AN58: =AN59+AN60 -> 0 | AO58: =AO59+AO60 -> 0 | AP58: =AP59+AP60 -> 0 | AQ58: 0 | AR58: =AR59+AR60 -> 0 | AS58: =AS59+AS60 -> 0 | AT58: =AT59+AT60 -> 0 | AU58: =AU59+AU60 -> 0 | AV58: 0 | AW58: =AW59+AW60 -> 0 | AX58: =AX59+AX60 -> 0 | AY58: =AY59+AY60 -> 0 | AZ58: =AZ59+AZ60 -> 0 | BA58: 0 | BB58: =BB59+BB60 -> 0 | BC58: =BC59+BC60 -> 0 | BD58: =BD59+BD60 -> 0 | BE58: =BE59+BE60 -> 0 | BF58: 0 | BG58: =BG59+BG60 -> 0 | BH58: =BH59+BH60 -> 0 | BI58: =BI59+BI60 -> 0 | BJ58: =BJ59+BJ60 -> 0 | BK58: 0 | BL58: =BL59+BL60 -> 0 | BM58: =BM59+BM60 -> 0 | BN58: =BN59+BN60 -> 0 | BO58: =BO59+BO60 -> 0
A59: 3.1. | B59: прочие потребители | C59: 0 | H59: 0 | M59: 0 | R59: 0 | W59: 0 | AB59: 0 | AG59: 0 | AL59: 0 | AQ59: 0 | AV59: 0 | BA59: 0 | BF59: 0 | BK59: 0
A60: 3.2. | B60: население | C60: 0 | H60: 0 | M60: 0 | R60: 0 | W60: 0 | AB60: 0 | AG60: 0 | AL60: 0 | AQ60: 0 | AV60: 0 | BA60: 0 | BF60: 0 | BK60: 0
A61: 4. | B61: ОАО "Оборонэнергосбыт" | C61: 0 | D61: =D62+D63 -> 0 | E61: =E62+E63 -> 0 | F61: =F62+F63 -> 0 | G61: =G62+G63 -> 0 | H61: 0 | I61: =I62+I63 -> 0 | J61: =J62+J63 -> 0 | K61: =K62+K63 -> 0 | L61: =L62+L63 -> 0 | M61: 0 | N61: =N62+N63 -> 0 | O61: =O62+O63 -> 0 | P61: =P62+P63 -> 0 | Q61: =Q62+Q63 -> 0 | R61: 0 | S61: =S62+S63 -> 0 | T61: =T62+T63 -> 0 | U61: =U62+U63 -> 0 | V61: =V62+V63 -> 0 | W61: 0 | X61: =X62+X63 -> 0 | Y61: =Y62+Y63 -> 0 | Z61: =Z62+Z63 -> 0 | AA61: =AA62+AA63 -> 0 | AB61: 0 | AC61: =AC62+AC63 -> 0 | AD61: =AD62+AD63 -> 0 | AE61: =AE62+AE63 -> 0 | AF61: =AF62+AF63 -> 0 | AG61: 0 | AH61: =AH62+AH63 -> 0 | AI61: =AI62+AI63 -> 0 | AJ61: =AJ62+AJ63 -> 0 | AK61: =AK62+AK63 -> 0 | AL61: 0 | AM61: =AM62+AM63 -> 0 | AN61: =AN62+AN63 -> 0 | AO61: =AO62+AO63 -> 0 | AP61: =AP62+AP63 -> 0 | AQ61: 0 | AR61: =AR62+AR63 -> 0 | AS61: =AS62+AS63 -> 0 | AT61: =AT62+AT63 -> 0 | AU61: =AU62+AU63 -> 0 | AV61: 0 | AW61: =AW62+AW63 -> 0 | AX61: =AX62+AX63 -> 0 | AY61: =AY62+AY63 -> 0 | AZ61: =AZ62+AZ63 -> 0 | BA61: 0 | BB61: =BB62+BB63 -> 0 | BC61: =BC62+BC63 -> 0 | BD61: =BD62+BD63 -> 0 | BE61: =BE62+BE63 -> 0 | BF61: 0 | BG61: =BG62+BG63 -> 0 | BH61: =BH62+BH63 -> 0 | BI61: =BI62+BI63 -> 0 | BJ61: =BJ62+BJ63 -> 0 | BK61: 0 | BL61: =BL62+BL63 -> 0 | BM61: =BM62+BM63 -> 0 | BN61: =BN62+BN63 -> 0 | BO61: =BO62+BO63 -> 0
A62: 4.1. | B62: прочие потребители | C62: 0 | H62: 0 | M62: 0 | R62: 0 | W62: 0 | AB62: 0 | AG62: 0 | AL62: 0 | AQ62: 0 | AV62: 0 | BA62: 0 | BF62: 0 | BK62: 0
A63: 4.2. | B63: население | C63: 0 | H63: 0 | M63: 0 | R63: 0 | W63: 0 | AB63: 0 | AG63: 0 | AL63: 0 | AQ63: 0 | AV63: 0 | BA63: 0 | BF63: 0 | BK63: 0
A64: Добавить
B65: Итого всего, в том числе: | C65: =D65+E65+F65+G65 -> 0 | D65: =D66+D67 -> 0 | E65: =E66+E67 -> 0 | F65: =F66+F67 -> 0 | G65: =G66+G67 -> 0 | H65: =I65+J65+K65+L65 -> 0 | I65: =I66+I67 -> 0 | J65: =J66+J67 -> 0 | K65: =K66+K67 -> 0 | L65: =L66+L67 -> 0 | M65: =N65+O65+P65+Q65 -> 0 | N65: =N66+N67 -> 0 | O65: =O66+O67 -> 0 | P65: =P66+P67 -> 0 | Q65: =Q66+Q67 -> 0 | R65: =S65+T65+U65+V65 -> 0 | S65: =S66+S67 -> 0 | T65: =T66+T67 -> 0 | U65: =U66+U67 -> 0 | V65: =V66+V67 -> 0 | W65: =X65+Y65+Z65+AA65 -> 0 | X65: =X66+X67 -> 0 | Y65: =Y66+Y67 -> 0 | Z65: =Z66+Z67 -> 0 | AA65: =AA66+AA67 -> 0 | AB65: =AC65+AD65+AE65+AF65 -> 0 | AC65: =AC66+AC67 -> 0 | AD65: =AD66+AD67 -> 0 | AE65: =AE66+AE67 -> 0 | AF65: =AF66+AF67 -> 0 | AG65: =AH65+AI65+AJ65+AK65 -> 0 | AH65: =AH66+AH67 -> 0 | AI65: =AI66+AI67 -> 0 | AJ65: =AJ66+AJ67 -> 0 | AK65: =AK66+AK67 -> 0 | AL65: =AM65+AN65+AO65+AP65 -> 0 | AM65: =AM66+AM67 -> 0 | AN65: =AN66+AN67 -> 0 | AO65: =AO66+AO67 -> 0 | AP65: =AP66+AP67 -> 0 | AQ65: =AR65+AS65+AT65+AU65 -> 0 | AR65: =AR66+AR67 -> 0 | AS65: =AS66+AS67 -> 0 | AT65: =AT66+AT67 -> 0 | AU65: =AU66+AU67 -> 0 | AV65: =AW65+AX65+AY65+AZ65 -> 0 | AW65: =AW66+AW67 -> 0 | AX65: =AX66+AX67 -> 0 | AY65: =AY66+AY67 -> 0 | AZ65: =AZ66+AZ67 -> 0 | BA65: =BB65+BC65+BD65+BE65 -> 0 | BB65: =BB66+BB67 -> 0 | BC65: =BC66+BC67 -> 0 | BD65: =BD66+BD67 -> 0 | BE65: =BE66+BE67 -> 0 | BF65: =BG65+BH65+BI65+BJ65 -> 0 | BG65: =BG66+BG67 -> 0 | BH65: =BH66+BH67 -> 0 | BI65: =BI66+BI67 -> 0 | BJ65: =BJ66+BJ67 -> 0 | BK65: =BL65+BM65+BN65+BO65 -> 0 | BL65: =BL66+BL67 -> 0 | BM65: =BM66+BM67 -> 0 | BN65: =BN66+BN67 -> 0 | BO65: =BO66+BO67 -> 0
B66: прочие потребители | C66: =D66+E66+F66+G66 -> 0 | D66: =D53+D56+D59+D62 -> 0 | E66: 0 | F66: 0 | G66: 0 | H66: =I66+J66+K66+L66 -> 0 | I66: =I53+I56+I59+I62 -> 0 | J66: 0 | K66: 0 | L66: 0 | M66: =N66+O66+P66+Q66 -> 0 | N66: =N53+N56+N59+N62 -> 0 | O66: 0 | P66: 0 | Q66: 0 | R66: =S66+T66+U66+V66 -> 0 | S66: =S53+S56+S59+S62 -> 0 | T66: 0 | U66: 0 | V66: 0 | W66: =X66+Y66+Z66+AA66 -> 0 | X66: =X53+X56+X59+X62 -> 0 | Y66: 0 | Z66: 0 | AA66: 0 | AB66: =AC66+AD66+AE66+AF66 -> 0 | AC66: =AC53+AC56+AC59+AC62 -> 0 | AD66: 0 | AE66: 0 | AF66: 0 | AG66: =AH66+AI66+AJ66+AK66 -> 0 | AH66: =AH53+AH56+AH59+AH62 -> 0 | AI66: 0 | AJ66: 0 | AK66: 0 | AL66: =AM66+AN66+AO66+AP66 -> 0 | AM66: =AM53+AM56+AM59+AM62 -> 0 | AN66: 0 | AO66: 0 | AP66: 0 | AQ66: =AR66+AS66+AT66+AU66 -> 0 | AR66: =AR53+AR56+AR59+AR62 -> 0 | AS66: 0 | AT66: 0 | AU66: 0 | AV66: =AW66+AX66+AY66+AZ66 -> 0 | AW66: =AW53+AW56+AW59+AW62 -> 0 | AX66: 0 | AY66: 0 | AZ66: 0 | BA66: =BB66+BC66+BD66+BE66 -> 0 | BB66: =BB53+BB56+BB59+BB62 -> 0 | BC66: 0 | BD66: 0 | BE66: 0 | BF66: =BG66+BH66+BI66+BJ66 -> 0 | BG66: =BG53+BG56+BG59+BG62 -> 0 | BH66: 0 | BI66: 0 | BJ66: 0 | BK66: =BL66+BM66+BN66+BO66 -> 0 | BL66: =BL53+BL56+BL59+BL62 -> 0 | BM66: 0 | BN66: 0 | BO66: 0
B67: население | C67: =D67+E67+F67+G67 -> 0 | D67: 0 | E67: =E54+E57+E60+E63 -> 0 | F67: 0 | G67: =G54+G57+G60+G63 -> 0 | H67: =I67+J67+K67+L67 -> 0 | I67: 0 | J67: 0 | K67: 0 | L67: 0 | M67: =N67+O67+P67+Q67 -> 0 | N67: 0 | O67: 0 | P67: 0 | Q67: 0 | R67: =S67+T67+U67+V67 -> 0 | S67: 0 | T67: 0 | U67: 0 | V67: 0 | W67: =X67+Y67+Z67+AA67 -> 0 | X67: 0 | Y67: 0 | Z67: 0 | AA67: 0 | AB67: =AC67+AD67+AE67+AF67 -> 0 | AC67: 0 | AD67: 0 | AE67: 0 | AF67: 0 | AG67: =AH67+AI67+AJ67+AK67 -> 0 | AH67: 0 | AI67: 0 | AJ67: 0 | AK67: 0 | AL67: =AM67+AN67+AO67+AP67 -> 0 | AM67: 0 | AN67: 0 | AO67: 0 | AP67: 0 | AQ67: =AR67+AS67+AT67+AU67 -> 0 | AR67: 0 | AS67: 0 | AT67: 0 | AU67: 0 | AV67: =AW67+AX67+AY67+AZ67 -> 0 | AW67: 0 | AX67: 0 | AY67: 0 | AZ67: 0 | BA67: =BB67+BC67+BD67+BE67 -> 0 | BB67: 0 | BC67: 0 | BD67: 0 | BE67: 0 | BF67: =BG67+BH67+BI67+BJ67 -> 0 | BG67: 0 | BH67: 0 | BI67: 0 | BJ67: 0 | BK67: =BL67+BM67+BN67+BO67 -> 0 | BL67: 0 | BM67: 0 | BN67: 0 | BO67: 0
B69: Руководитель организации | G69: ='Инф-я'!C17 -> А.А. Мартынов

Sheet Баланс мощности
A3: Электрическая мощность по диапазонам напряжения
A4: ='Инф-я'!C9 -> МУП «Горэлектросеть» г. Муром
P5: МВт
A6: № п.п. | B6: Показатели | C6: Принято регулирующим органом на 2017 год | H6: Факт за 2017 год | M6: По данным организации на 2019 год | R6: Принято регулирующим органом на 2019 год
C7: Всего | D7: ВН | E7: СН1 | F7: СН2 | G7: НН | H7: Всего | I7: ВН | J7: СН1 | K7: СН2 | L7: НН | M7: Всего | N7: ВН | O7: СН1 | P7: СН2 | Q7: НН | R7: Всего | S7: ВН | T7: СН1 | U7: СН2 | V7: НН
A8: 1 | B8: 2 | C8: 3 | D8: 4 | E8: 5 | F8: 6 | G8: 7 | H8: 8 | I8: 9 | J8: 10 | K8: 11 | L8: 12 | M8: 13 | N8: 14 | O8: 15 | P8: 16 | Q8: 17 | R8: 18 | S8: 19 | T8: 20 | U8: 21 | V8: 22
A9: 1. | B9: Поступление мощности в сеть , ВСЕГО | C9: =C19+C21+C22 -> 29.1252 | D9: =D15+D16+D17+D18 -> 28.8654 | E9: =E10+E15+E16+E17+E18 -> 0.2598 | F9: =F10+F15+F16+F17+F18 -> 29.1252 | G9: =G10+G15+G16+G17+G18 -> 19.33014952 | H9: =H19+H21+H22 -> 29.1251988 | I9: =I15+I16+I17+I18 -> 28.7470559 | J9: =J10+J15+J16+J17+J18 -> 0.3781429 | K9: =K10+K15+K16+K17+K18 -> 29.1251988 | L9: =L10+L15+L16+L17+L18 -> 17.32270885 | M9: =M19+M21+M22 -> 29.1252 | N9: =N15+N16+N17+N18 -> 28.8654 | O9: =O10+O15+O16+O17+O18 -> 0.2598 | P9: =P10+P15+P16+P17+P18 -> 29.1252 | Q9: =Q10+Q15+Q16+Q17+Q18 -> 19.33014952 | R9: =R19+R21+R22 -> 0 | S9: =S15+S16+S17+S18 -> 0 | T9: =T10+T15+T16+T17+T18 -> 0 | U9: =U10+U15+U16+U17+U18 -> 0 | V9: =V10+V15+V16+V17+V18 -> 0
A10: 1.1. | B10: из смежной сети, всего | C10: х | D10: х | E10: =E12 -> 0 | F10: =F12+F13 -> 29.1252 | G10: =G12+G13+G14 -> 19.33014952 | H10: х | I10: х | J10: =J12 -> 0 | K10: =K12+K13 -> 29.1251988 | L10: =L12+L13+L14 -> 17.32270885 | M10: х | N10: х | O10: =O12 -> 0 | P10: =P12+P13 -> 29.1252 | Q10: =Q12+Q13+Q14 -> 19.33014952 | R10: х | S10: х | T10: =T12 -> 0 | U10: =U12+U13 -> 0 | V10: =V12+V13+V14 -> 0
B11: в том числе из сети | C11: х | D11: х | E11: х | F11: х | G11: х | H11: х | I11: х | J11: х | K11: х | L11: х | M11: х | N11: х | O11: х | P11: х | Q11: х | R11: х | S11: х | T11: х | U11: х | V11: х
A12: 1.1.1. | B12: ВН | C12: х | D12: х | F12: =D9-D19-D21-D22-G12-E12 -> 28.8654 | H12: х | I12: х | K12: =I9-I19-I21-I22-L12-J12 -> 28.7470559 | M12: х | N12: х | P12: =N9-N19-N21-N22-Q12-O12 -> 28.8654 | R12: х | S12: х | U12: =S9-S19-S21-S22-V12-T12 -> 0
A13: 1.1.2. | B13: СН1 | C13: х | D13: х | E13: х | F13: =E9-E19-E21-E22-G13 -> 0.2598 | H13: х | I13: х | J13: х | K13: =J9-J19-J21-J22-L13 -> 0.3781429 | M13: х | N13: х | O13: х | P13: =O9-O19-O21-O22-Q13 -> 0.2598 | R13: х | S13: х | T13: х | U13: =T9-T19-T21-T22-V13 -> 0
A14: 1.1.3. | B14: СН2 | C14: х | D14: х | E14: х | F14: х | G14: =F9-F19-F21-F22 -> 19.33014952 | H14: х | I14: х | J14: х | K14: х | L14: =K9-K19-K21-K22 -> 17.32270885 | M14: х | N14: х | O14: х | P14: х | Q14: =P9-P19-P21-P22 -> 19.33014952 | R14: х | S14: х | T14: х | U14: х | V14: =U9-U19-U21-U22 -> 0
A15: 1.2. | B15: от электростанций | C15: =SUM(D15:G15) -> 0 | H15: =SUM(I15:L15) -> 0 | M15: =SUM(N15:Q15) -> 0 | R15: =SUM(S15:V15) -> 0
A16: 1.3. | B16: от ОАО "ФСК ЕЭС" | C16: =SUM(D16:G16) -> 0 | H16: =SUM(I16:L16) -> 0 | M16: =SUM(N16:Q16) -> 0 | R16: =SUM(S16:V16) -> 0
A17: 1.4. | B17: от филиала "Владимирэнерго" ОАО "МРСК Центра и Приволжья" | C17: =SUM(D17:G17) -> 29.1252 | D17: 28.8654 | E17: 0.2598 | H17: =SUM(I17:L17) -> 29.1251988 | I17: 28.7470559 | J17: 0.3781429 | M17: =SUM(N17:Q17) -> 29.1252 | N17: 28.8654 | O17: 0.2598 | R17: =SUM(S17:V17) -> 0
A18: 1.5. | B18: от других сетевых организаций | C18: =SUM(D18:G18) -> 0 | H18: =SUM(I18:L18) -> 0 | M18: =SUM(N18:Q18) -> 0 | R18: =SUM(S18:V18) -> 0
A19: 2. | B19: Потери мощности в сети | C19: =SUM(D19:G19) -> 3.740015828 | D19: =D9*D20/100 -> 0 | E19: =E9*E20/100 -> 0 | F19: =F9*F20/100 -> 1.67178648 | G19: =G9*G20/100 -> 2.068229348 | H19: =SUM(I19:L19) -> 3.740000234 | I19: =I9*I20/100 -> 0 | J19: =J9*J20/100 -> 0 | K19: =K9*K20/100 -> 1.122389951 | L19: =L9*L20/100 -> 2.617610282 | M19: =SUM(N19:Q19) -> 3.740015828 | N19: =N9*N20/100 -> 0 | O19: =O9*O20/100 -> 0 | P19: =P9*P20/100 -> 1.67178648 | Q19: =Q9*Q20/100 -> 2.068229348 | R19: =SUM(S19:V19) -> 0 | S19: =S9*S20/100 -> 0 | T19: =T9*T20/100 -> 0 | U19: =U9*U20/100 -> 0 | V19: =V9*V20/100 -> 0
A20: 2.1. | B20: то же в % (п.2./п.1.) | C20: =IF(C9=0,0,C19/C9*100) -> 12.84116788 | D20: ='Баланс энергии'!D20 -> 0 | E20: ='Баланс энергии'!E20 -> 0 | F20: ='Баланс энергии'!F20 -> 5.74 | G20: 10.6995 | H20: =IF(H9=0,0,H19/H9*100) -> 12.84111487 | I20: ='Баланс энергии'!S20 -> 0 | J20: ='Баланс энергии'!T20 -> 0 | K20: ='Баланс энергии'!U20 -> 3.8536731 | L20: 15.11086 | M20: =IF(M9=0,0,M19/M9*100) -> 12.84116788 | N20: ='Баланс энергии'!AW20 -> 0 | O20: ='Баланс энергии'!AX20 -> 0 | P20: ='Баланс энергии'!AY20 -> 5.74 | Q20: 10.6995 | R20: =IF(R9=0,0,R19/R9*100) -> 0 | S20: ='Баланс энергии'!BL20 -> 0 | T20: ='Баланс энергии'!BM20 -> 0 | U20: ='Баланс энергии'!BN20 -> 0
A21: 3. | B21: Расход электроэнергии на производственные и хознужды | C21: =SUM(D21:G21) -> 0 | H21: =SUM(I21:L21) -> 0 | M21: =SUM(N21:Q21) -> 0 | R21: =SUM(S21:V21) -> 0
A22: 4. | B22: Полезный отпуск из сети | C22: =SUM(D22:G22) -> 25.38518417 | D22: =D23+D24+D25 -> 0 | E22: =E23+E24+E25 -> 0 | F22: =F23+F24+F25 -> 8.123264 | G22: =G9-G19-G21 -> 17.26192017 | H22: =SUM(I22:L22) -> 25.38519857 | I22: =I23+I24+I25 -> 0 | J22: =J23+J24+J25 -> 0 | K22: =K23+K24+K25 -> 10.6801 | L22: =L9-L19-L21 -> 14.70509857 | M22: =SUM(N22:Q22) -> 25.38518417 | N22: =N23+N24+N25 -> 0 | O22: =O23+O24+O25 -> 0 | P22: =P23+P24+P25 -> 8.123264 | Q22: =Q9-Q19-Q21 -> 17.26192017 | R22: =SUM(S22:V22) -> 0 | S22: =S23+S24+S25 -> 0 | T22: =T23+T24+T25 -> 0 | U22: =U23+U24+U25 -> 0 | V22: =V9-V19-V21 -> 0
A23: 4.1. | B23: потребителям, присоединенным к сети | C23: =SUM(D23:G23) -> 22.8333464 | F23: 6.158337 | G23: 16.6750094 | H23: =SUM(I23:L23) -> 24.1520988 | K23: 9.6107 | L23: 14.5413988 | M23: =SUM(N23:Q23) -> 22.8333464 | P23: 6.158337 | Q23: 16.6750094 | R23: =SUM(S23:V23) -> 0
A24: 4.2. | B24: переток в филиал "Владимирэнерго" ОАО "МРСК Центра и Приволжья" | C24: =SUM(D24:G24) -> 0 | H24: =SUM(I24:L24) -> 0 | M24: =SUM(N24:Q24) -> 0 | R24: =SUM(S24:V24) -> 0
A25: 4.3. | B25: переток в другие сетевые организации | C25: =SUM(D25:G25) -> 2.5518536 | F25: 1.964927 | G25: 0.5869266 | H25: =SUM(I25:L25) -> 1.2331 | K25: 1.0694 | L25: 0.1637 | M25: =SUM(N25:Q25) -> 2.5518536 | P25: 1.964927 | Q25: 0.5869266 | R25: =SUM(S25:V25) -> 0
B26: Проверка | D26: =D9-D19-D21-D23-D24-D25-E12-F12-G12 -> 0 | E26: =E9-E19-E21-E23-E24-E25-F13-G13 -> 0 | F26: =F9-F19-F21-F23-F24-F25-G14 -> 0 | G26: =G9-G19-G21-G23-G24-G25 -> -1.58278924e-05 | I26: =I9-I19-I21-I23-I24-I25-J12-K12-L12 -> 0 | J26: =J9-J19-J21-J23-J24-J25-K13-L13 -> 0 | K26: =K9-K19-K21-K23-K24-K25-L14 -> 0 | L26: =L9-L19-L21-L23-L24-L25 -> -2.337850247e-07 | N26: =N9-N19-N21-N23-N24-N25-O12-P12-Q12 -> 0 | O26: =O9-O19-O21-O23-O24-O25-P13-Q13 -> 0 | P26: =P9-P19-P21-P23-P24-P25-Q14 -> 0 | Q26: =Q9-Q19-Q21-Q23-Q24-Q25 -> -1.58278924e-05 | S26: =S9-S19-S21-S23-S24-S25-T12-U12-V12 -> 0 | T26: =T9-T19-T21-T23-T24-T25-U13-V13 -> 0 | U26: =U9-U19-U21-U23-U24-U25-V14 -> 0 | V26: =V9-V19-V21-V23-V24-V25 -> 0
B28: Примечание
B30: Расшифровка п. 1.5. (Поступление от других сетевых организаций)
A31: № | B31: Наименование других сетевых организаций | C31: Всего | D31: ВН | E31: СН1 | F31: СН2 | G31: НН | H31: Всего | I31: ВН | J31: СН1 | K31: СН2 | L31: НН | M31: Всего | N31: ВН | O31: СН1 | P31: СН2 | Q31: НН | R31: Всего | S31: ВН | T31: СН1 | U31: СН2 | V31: НН
C32: =SUM(D32:G32) -> 0 | H32: =SUM(I32:L32) -> 0 | M32: =SUM(N32:Q32) -> 0 | R32: =SUM(S32:V32) -> 0
C33: =SUM(D33:G33) -> 0 | H33: =SUM(I33:L33) -> 0 | M33: =SUM(N33:Q33) -> 0 | R33: =SUM(S33:V33) -> 0
B34: Добавить
B35: Итого | C35: =SUM(C32:C33) -> 0 | D35: 0 | E35: 0 | F35: 0 | G35: 0 | H35: 0 | I35: 0 | J35: 0 | K35: 0 | L35: 0 | M35: 0 | N35: 0 | O35: 0 | P35: 0 | Q35: 0 | R35: 0 | S35: 0 | T35: 0 | U35: 0 | V35: 0
B37: Расшифровка п. 4.3. (Полезный отпуск - переток в другие сетевые организации)
A38: № | B38: Наименование других сетевых организаций | C38: Всего | D38: ВН | E38: СН1 | F38: СН2 | G38: НН | H38: Всего | I38: ВН | J38: СН1 | K38: СН2 | L38: НН | M38: Всего | N38: ВН | O38: СН1 | P38: СН2 | Q38: НН | R38: Всего | S38: ВН | T38: СН1 | U38: СН2 | V38: НН
C39: =SUM(D39:G39) -> 0 | H39: =SUM(I39:L39) -> 0 | M39: =SUM(N39:Q39) -> 0 | R39: =SUM(S39:V39) -> 0
C40: =SUM(D40:G40) -> 0 | H40: =SUM(I40:L40) -> 0 | M40: =SUM(N40:Q40) -> 0 | R40: =SUM(S40:V40) -> 0
C41: =SUM(D41:G41) -> 0 | H41: =SUM(I41:L41) -> 0 | M41: =SUM(N41:Q41) -> 0 | R41: =SUM(S41:V41) -> 0
B42: Добавить
B43: Итого | C43: =SUM(C39:C41) -> 0 | D43: =SUM(D39:D41) -> 0 | E43: =SUM(E39:E41) -> 0 | F43: =SUM(F39:F41) -> 0 | G43: =SUM(G39:G41) -> 0 | H43: =SUM(H39:H41) -> 0 | I43: 0 | J43: 0 | K43: 0 | L43: 0 | M43: 0 | N43: 0 | O43: 0 | P43: 0 | Q43: 0 | R43: 0 | S43: 0 | T43: 0 | U43: 0 | V43: 0
B45: Расшифровка п. 4.1. (Полезный отпуск потребителям, присоединенным к сети)
A46: № | B46: Наименование сбытовых организаций | C46: Всего | D46: ВН | E46: СН1 | F46: СН2 | G46: НН | H46: Всего | I46: ВН | J46: СН1 | K46: СН2 | L46: НН | M46: Всего | N46: ВН | O46: СН1 | P46: СН2 | Q46: НН | R46: Всего | S46: ВН | T46: СН1 | U46: СН2 | V46: НН
A47: 1. | B47: ОАО "Владимирэнергосбыт" всего, в том числе: | C47: =D47+E47+F47+G47 -> 0 | D47: =D48+D49 -> 0 | E47: =E48+E49 -> 0 | F47: =F48+F49 -> 0 | G47: =G48+G49 -> 0 | H47: =I47+J47+K47+L47 -> 0 | I47: =I48+I49 -> 0 | J47: =J48+J49 -> 0 | K47: =K48+K49 -> 0 | L47: =L48+L49 -> 0 | M47: =N47+O47+P47+Q47 -> 0 | N47: =N48+N49 -> 0 | O47: =O48+O49 -> 0 | P47: =P48+P49 -> 0 | Q47: =Q48+Q49 -> 0 | R47: =S47+T47+U47+V47 -> 0 | S47: =S48+S49 -> 0 | T47: =T48+T49 -> 0 | U47: =U48+U49 -> 0 | V47: =V48+V49 -> 0
A48: 1.1. | B48: прочие потребители | C48: =D48+E48+F48+G48 -> 0 | H48: =I48+J48+K48+L48 -> 0 | M48: =N48+O48+P48+Q48 -> 0 | R48: =S48+T48+U48+V48 -> 0
A49: 1.2. | B49: население | C49: 0 | H49: 0 | M49: 0 | R49: 0
A50: 2. | B50: ОАО "ВКС" всего, в том числе: | C50: 0 | D50: =D51+D52 -> 0 | E50: =E51+E52 -> 0 | F50: =F51+F52 -> 0 | G50: =G51+G52 -> 0 | H50: 0 | I50: =I51+I52 -> 0 | J50: =J51+J52 -> 0 | K50: =K51+K52 -> 0 | L50: =L51+L52 -> 0 | M50: 0 | N50: =N51+N52 -> 0 | O50: =O51+O52 -> 0 | P50: =P51+P52 -> 0 | Q50: =Q51+Q52 -> 0 | R50: 0 | S50: =S51+S52 -> 0 | T50: =T51+T52 -> 0 | U50: =U51+U52 -> 0 | V50: =V51+V52 -> 0
A51: 2.1. | B51: прочие потребители | C51: 0 | H51: 0 | M51: 0 | R51: 0
A52: 2.2. | B52: население | C52: 0 | H52: 0 | M52: 0 | R52: 0
A53: 3. | B53: ОАО "Русэнергосбыт" | C53: 0 | D53: =D54+D55 -> 0 | E53: =E54+E55 -> 0 | F53: =F54+F55 -> 0 | G53: =G54+G55 -> 0 | H53: 0 | I53: =I54+I55 -> 0 | J53: =J54+J55 -> 0 | K53: =K54+K55 -> 0 | L53: =L54+L55 -> 0 | M53: 0 | N53: =N54+N55 -> 0 | O53: =O54+O55 -> 0 | P53: =P54+P55 -> 0 | Q53: =Q54+Q55 -> 0 | R53: 0 | S53: =S54+S55 -> 0 | T53: =T54+T55 -> 0 | U53: =U54+U55 -> 0 | V53: =V54+V55 -> 0
A54: 3.1. | B54: прочие потребители | C54: 0 | H54: 0 | M54: 0 | R54: 0
A55: 3.2. | B55: население | C55: 0 | H55: 0 | M55: 0 | R55: 0
A56: 4. | B56: ОАО "Оборонэнергосбыт" | C56: 0 | D56: =D57+D58 -> 0 | E56: =E57+E58 -> 0 | F56: =F57+F58 -> 0 | G56: =G57+G58 -> 0 | H56: 0 | I56: =I57+I58 -> 0 | J56: =J57+J58 -> 0 | K56: =K57+K58 -> 0 | L56: =L57+L58 -> 0 | M56: 0 | N56: =N57+N58 -> 0 | O56: =O57+O58 -> 0 | P56: =P57+P58 -> 0 | Q56: =Q57+Q58 -> 0 | R56: 0 | S56: =S57+S58 -> 0 | T56: =T57+T58 -> 0 | U56: =U57+U58 -> 0 | V56: =V57+V58 -> 0
A57: 4.1. | B57: прочие потребители | C57: 0 | H57: 0 | M57: 0 | R57: 0
A58: 4.2. | B58: население | C58: 0 | H58: 0 | M58: 0 | R58: 0
A59: Добавить
B60: Итого всего, в том числе: | C60: =D60+E60+F60+G60 -> 0 | D60: =D61+D62 -> 0 | E60: =E61+E62 -> 0 | F60: =F61+F62 -> 0 | G60: =G61+G62 -> 0 | H60: =I60+J60+K60+L60 -> 0 | I60: =I61+I62 -> 0 | J60: =J61+J62 -> 0 | K60: =K61+K62 -> 0 | L60: =L61+L62 -> 0 | M60: =N60+O60+P60+Q60 -> 0 | N60: =N61+N62 -> 0 | O60: =O61+O62 -> 0 | P60: =P61+P62 -> 0 | Q60: =Q61+Q62 -> 0 | R60: =S60+T60+U60+V60 -> 0 | S60: =S61+S62 -> 0 | T60: =T61+T62 -> 0 | U60: =U61+U62 -> 0 | V60: =V61+V62 -> 0
B61: прочие потребители | C61: =D61+E61+F61+G61 -> 0 | D61: =D48+D51+D54+D57 -> 0 | E61: =E48+E51+E54+E57 -> 0 | F61: 0 | G61: 0 | H61: =I61+J61+K61+L61 -> 0 | I61: =I48+I51+I54+I57 -> 0 | J61: =J48+J51+J54+J57 -> 0 | K61: 0 | L61: 0 | M61: =N61+O61+P61+Q61 -> 0 | N61: =N48+N51+N54+N57 -> 0 | O61: =O48+O51+O54+O57 -> 0 | P61: 0 | Q61: 0 | R61: =S61+T61+U61+V61 -> 0 | S61: =S48+S51+S54+S57 -> 0 | T61: 0 | U61: 0 | V61: 0
B62: население | C62: =D62+E62+F62+G62 -> 0 | D62: =D49+D52+D55+D58 -> 0 | E62: 0 | F62: 0 | G62: 0 | H62: =I62+J62+K62+L62 -> 0 | I62: =I49+I52+I55+I58 -> 0 | J62: 0 | K62: 0 | L62: 0 | M62: =N62+O62+P62+Q62 -> 0 | N62: =N49+N52+N55+N58 -> 0 | O62: 0 | P62: 0 | Q62: 0 | R62: =S62+T62+U62+V62 -> 0 | S62: 0 | T62: 0 | U62: 0 | V62: 0
B64: Руководитель организации | G64: ='Инф-я'!C17 -> А.А. Мартынов
B66: Справочная информация:
B67: Фактические данные по мощности заполняются по данным приборов учета электрической мощности, в случае отсутствия приборов учета по результатам контрольных замеров мощности

Sheet Выбор оценочного балла (hidden)
A2: Выбор оценочного балла
A4: Принимаемое значение (Ф / П * 100, % ) (гр.4 форм 2.1-2.3) | C4: Оценочный балл (гр.6 форм 2.1 - 2.3)
A5: прямая зависимость (гр.5 форм 2.1 - 2.3) | B5: обратная зависимость (гр.5 форм 2.1 - 2.3)
A6: гр.4 форм 2.1-2.3 < 80% | B6: гр.4 форм 2.1-2.3 > 120 % | C6: 3 балла - для всех пунктов форм 2.1 - 2.3 кроме: 0,75 баллов - для п. 2, 5, 6 формы 2.2 0,3 балла - для п. 3,4,7 формы 2.2
A7: 80 % ≤ гр.4 форм 2.1-2.3 ≤ 120 % | C7: 2 балла - для всех пунктов форм 2.1 - 2.3 кроме: 0,5 баллов - для п. 2, 5, 6 формы 2.2 0,2 балла - для п. 3,4,7 формы 2.2
A8: гр.4 форм 2.1-2.3 > 120 % | B8: гр.4 форм 2.1-2.3 < 80% | C8: 1 балл - для всех пунктов форм 2.1 - 2.3 кроме: 0,25 баллов - для п. 2, 5, 6 формы 2.2 0,1 балла - для п. 3,4,7 формы 2.2
